fUST/lending_fUST_20250626
["ID","MTS","AMOUNT","RATE_DAILY","PERIOD"]
[367626228,1750881042246,-500.0,0.00016657,2]
[367626229,1750881042255,-151.0,0.00016657,2]
[367626231,1750881042265,-500.0,0.00016657,2]
[367626233,1750881042274,-151.0,0.00016657,2]
[367626235,1750881042283,-151.0,0.00016657,2]
[367626237,1750881042292,-272.65372998,0.00016657,2]
[367626238,1750881042301,-151.0,0.00016657,2]
[367626240,1750881042311,-206.78739862,0.00016657,2]
[367626242,1750881042320,-500.0,0.00016657,2]
[367626244,1750881042329,-500.0,0.00016657,2]
[367626245,1750881042339,-151.0,0.00016657,2]
[367626247,1750881042348,-151.0,0.00016657,2]
[367626249,1750881042357,-500.0,0.00016657,2]
[367626251,1750881042366,-500.0,0.00016657,2]
[367626253,1750881042375,-500.0,0.00016657,2]
[367626254,1750881042385,-151.0,0.00016657,2]
[367626256,1750881042393,-500.0,0.00016657,2]
[367626258,1750881042402,-500.0,0.00016657,2]
[367626260,1750881042412,-500.0,0.00016684,2]
[367626261,1750881042421,-500.0,0.00016684,2]
[367626263,1750881042431,-500.0,0.00016684,2]
[367626265,1750881042440,-500.0,0.00016684,2]
[367626267,1750881042449,-623.16222439,0.00016684,2]
[367626268,1750881042458,-151.0,0.00016684,2]
[367626270,1750881042467,-151.0,0.00016684,2]
[367626272,1750881042477,-500.0,0.00016684,2]
[367626274,1750881042486,-500.0,0.00016684,2]
[367626275,1750881042495,-500.0,0.00016684,2]
[367626277,1750881042505,-250.31529006,0.00016684,2]
[367626279,1750881042515,-500.0,0.00016684,2]
[367626281,1750881042524,-500.0,0.00016684,2]
[367626283,1750881042534,-316.98735537,0.00016712,2]
[367626284,1750881042543,-500.0,0.00016712,2]
[367626286,1750881042552,-500.0,0.00016712,2]
[367626288,1750881042561,-500.0,0.00016712,2]
[367626290,1750881042571,-216.78937437,0.00016712,2]
[367626291,1750881042580,-183.46578051,0.00016712,2]
[367626293,1750881042589,-500.0,0.00016712,2]
[367626295,1750881042599,-500.0,0.00016712,2]
[367626297,1750881042609,-500.0,0.00016712,2]
[367626299,1750881042619,-500.0,0.00016712,2]
[367626300,1750881042629,-500.0,0.00016712,2]
[367626302,1750881042638,-460.0,0.00016712,2]
[367626304,1750881042648,-460.0,0.00016712,2]
[367626306,1750881042658,-545.88,0.00016712,2]
[367626307,1750881042667,-460.0,0.00016712,2]
[367626309,1750881042677,-159.54320662,0.00016712,2]
[367626311,1750881042686,-460.0,0.00016712,2]
[367626313,1750881042695,-460.0,0.00016712,2]
[367626315,1750881042704,-460.0,0.00016712,2]
[367626316,1750881042713,-460.0,0.00016712,2]
[367626318,1750881042723,-306.12935371,0.00016712,2]
[367626320,1750881042732,-460.0,0.00016712,2]
[367626322,1750881042742,-200.05788437,0.00016712,2]
[367626323,1750881042751,-460.0,0.00016712,2]
[367626325,1750881042760,-460.0,0.00016712,2]
[367626327,1750881042769,-460.0,0.00016712,2]
[367626329,1750881042779,-460.0,0.00016712,2]
[367626331,1750881042789,-460.0,0.00016712,2]
[367626332,1750881042798,-249.41677295,0.00016712,2]
[367626334,1750881042808,-460.0,0.00016712,2]
[367626336,1750881042818,-291.03252328,0.00016712,2]
[367626338,1750881042827,-294.09410533,0.00016712,2]
[367626340,1750881042836,-460.0,0.00016712,2]
[367626341,1750881042846,-460.0,0.00016712,2]
[367626343,1750881042855,-155.15715625,0.00016712,2]
[367626345,1750881042864,-460.0,0.00016712,2]
[367626347,1750881042874,-460.0,0.00016712,2]
[367626350,1750881042883,-460.0,0.00016712,2]
[367626352,1750881042892,-480.20217855,0.00016712,2]
[367626355,1750881042902,-460.0,0.00016712,2]
[367626359,1750881042911,-460.0,0.00016712,2]
[367626362,1750881042922,-460.0,0.00016712,2]
[367626365,1750881042930,-460.0,0.00016712,2]
[367626367,1750881042940,-460.0,0.00016712,2]
[367626370,1750881042949,-460.0,0.00016712,2]
[367626373,1750881042959,-283.66,0.00016712,2]
[367626376,1750881042969,-460.0,0.00016712,2]
[367626379,1750881042978,-363.55677075,0.00016712,2]
[367626381,1750881042988,-460.0,0.00016712,2]
[367626384,1750881042999,-460.0,0.00016712,2]
[367626387,1750881043009,-460.0,0.00016712,2]
[367626390,1750881043019,-460.0,0.00016712,2]
[367626393,1750881043029,-460.0,0.00016712,2]
[367626417,1750881043196,-538.43,0.00016712,2]
[367626420,1750881043206,-472.6730505,0.00016712,2]
[367626422,1750881043215,-460.0,0.00016712,2]
[367626425,1750881043226,-460.0,0.00016712,2]
[367626426,1750881043240,-468.58862482,0.00016712,2]
[367626429,1750881043250,-371.75749895,0.00016712,2]
[367626432,1750881043260,-346.63,0.00016712,2]
[367626434,1750881043270,-460.0,0.00016712,2]
[367626436,1750881043281,-460.0,0.00016712,2]
[367626438,1750881043291,-460.0,0.00016712,2]
[367626439,1750881043300,-460.0,0.00016712,2]
[367626441,1750881043310,-460.0,0.00016712,2]
[367626443,1750881043320,-460.0,0.00016712,2]
[367626444,1750881043329,-460.0,0.00016712,2]
[367626446,1750881043339,-460.0,0.00016712,2]
[367626448,1750881043348,-460.0,0.00016712,2]
[367626450,1750881043358,-50.27350575,0.00016712,2]
[367626452,1750881043373,-321.24673034,0.00016712,2]
[367626454,1750881043383,-460.0,0.00016712,2]
[367626456,1750881043392,-460.0,0.00016712,2]
[367626457,1750881043402,-460.0,0.00016712,2]
[367626459,1750881043411,-352.29890482,0.00016712,2]
[367626461,1750881043420,-460.0,0.00016712,2]
[367626464,1750881043430,-1048.64,0.00016712,2]
[367626467,1750881043439,-460.0,0.00016712,2]
[367626468,1750881043449,-460.0,0.00016712,2]
[367626470,1750881043459,-460.0,0.00016712,2]
[367626472,1750881043468,-460.0,0.00016712,2]
[367626474,1750881043477,-460.0,0.00016712,2]
[367626476,1750881043487,-460.0,0.00016712,2]
[367626478,1750881043497,-1558.71,0.00016712,2]
[367626481,1750881043507,-329.1737738,0.00016712,2]
[367626484,1750881043517,-460.0,0.00016712,2]
[367626487,1750881043526,-460.0,0.00016712,2]
[367626489,1750881043536,-460.0,0.00016712,2]
[367626490,1750881043546,-460.0,0.00016712,2]
[367626492,1750881043555,-460.0,0.00016712,2]
[367626494,1750881043564,-460.0,0.00016712,2]
[367626496,1750881043572,-460.0,0.00016712,2]
[367626497,1750881043580,-460.0,0.00016712,2]
[367626499,1750881043588,-460.0,0.00016712,2]
[367626501,1750881043596,-460.0,0.00016712,2]
[367626503,1750881043606,-312.17586911,0.00016712,2]
[367626505,1750881043614,-460.0,0.00016712,2]
[367626506,1750881043621,-460.0,0.00016712,2]
[367626509,1750881043633,-460.0,0.00016712,2]
[367626511,1750881043643,-460.0,0.00016712,2]
[367626512,1750881043653,-460.0,0.00016712,2]
[367626514,1750881043663,-1371.04,0.00016712,2]
[367626517,1750881043673,-460.0,0.00016712,2]
[367626519,1750881043683,-460.0,0.00016712,2]
[367626521,1750881043693,-1403.03,0.00016712,2]
[367626522,1750881043703,-1137.36,0.00016712,2]
[367626524,1750881043712,-460.0,0.00016712,2]
[367626527,1750881043722,-460.0,0.00016712,2]
[367626529,1750881043733,-460.0,0.00016712,2]
[367626531,1750881043742,-460.0,0.00016712,2]
[367626533,1750881043752,-460.0,0.00016712,2]
[367626535,1750881043762,-330.86,0.00016712,2]
[367626536,1750881043772,-460.0,0.00016712,2]
[367626537,1750881043781,-460.0,0.00016712,2]
[367626538,1750881043790,-460.0,0.00016712,2]
[367626539,1750881043800,-690.47,0.00016712,2]
[367626540,1750881043809,-460.0,0.00016712,2]
[367626541,1750881043819,-460.0,0.00016712,2]
[367626542,1750881043829,-460.0,0.00016712,2]
[367626543,1750881043838,-460.0,0.00016712,2]
[367626544,1750881043848,-712.72,0.00016712,2]
[367626545,1750881043858,-1179.7,0.00016712,2]
[367626546,1750881043867,-460.0,0.00016712,2]
[367626547,1750881043877,-350.0,0.00016712,2]
[367626548,1750881043887,-460.0,0.00016712,2]
[367626549,1750881043897,-1199.51,0.00016712,2]
[367626550,1750881043907,-2780.32,0.00016712,2]
[367626551,1750881043917,-460.0,0.00016712,2]
[367626552,1750881043927,-464.2090881,0.00016712,2]
[367626553,1750881043936,-2329.28,0.00016712,2]
[367626554,1750881043947,-1923.99,0.00016712,2]
[367626555,1750881043958,-460.0,0.00016712,2]
[367626556,1750881043968,-460.0,0.00016712,2]
[367626557,1750881043978,-460.0,0.00016712,2]
[367626558,1750881043987,-460.0,0.00016712,2]
[367626559,1750881043998,-460.0,0.00016712,2]
[367626560,1750881044007,-460.0,0.00016712,2]
[367626561,1750881044017,-169.29393935,0.00016712,2]
[367626562,1750881044026,-460.0,0.00016712,2]
[367626563,1750881044035,-548.48,0.00016712,2]
[367626564,1750881044045,-670.7,0.00016712,2]
[367626565,1750881044055,-460.0,0.00016712,2]
[367626566,1750881044065,-460.0,0.00016712,2]
[367626567,1750881044074,-460.0,0.00016712,2]
[367626568,1750881044084,-882.97,0.00016712,2]
[367626569,1750881044094,-460.0,0.00016712,2]
[367626570,1750881044104,-460.0,0.00016712,2]
[367626571,1750881044114,-625.31,0.00016712,2]
[367626572,1750881044124,-460.0,0.00016712,2]
[367626573,1750881044133,-1145.64,0.00016712,2]
[367626574,1750881044143,-460.0,0.00016712,2]
[367626575,1750881044152,-460.0,0.00016712,2]
[367626576,1750881044162,-523.07,0.00016712,2]
[367626577,1750881044173,-460.0,0.00016712,2]
[367626578,1750881044185,-284.80169447,0.00016712,2]
[367626592,1750881044337,-175.19830553,0.00016712,2]
[367626594,1750881044347,-1537.77,0.00016712,2]
[367626596,1750881044356,-460.0,0.00016712,2]
[367626598,1750881044366,-460.0,0.00016712,2]
[367626600,1750881044375,-686.58,0.00016712,2]
[367626602,1750881044384,-460.0,0.00016712,2]
[367626604,1750881044393,-1094.49,0.00016712,2]
[367626606,1750881044403,-426.08296095,0.00016712,2]
[367626608,1750881044412,-460.0,0.00016712,2]
[367626610,1750881044421,-460.0,0.00016712,2]
[367626612,1750881044431,-460.0,0.00016712,2]
[367626614,1750881044440,-460.0,0.00016712,2]
[367626616,1750881044451,-597.38,0.00016712,2]
[367626618,1750881044460,-460.0,0.00016712,2]
[367626620,1750881044469,-460.0,0.00016712,2]
[367626622,1750881044478,-460.0,0.00016712,2]
[367626624,1750881044487,-460.0,0.00016712,2]
[367626626,1750881044497,-460.0,0.00016712,2]
[367626628,1750881044506,-460.0,0.00016712,2]
[367626630,1750881044515,-460.0,0.00016712,2]
[367626632,1750881044524,-460.0,0.00016712,2]
[367626634,1750881044533,-460.0,0.00016712,2]
[367626636,1750881044542,-460.0,0.00016712,2]
[367626638,1750881044551,-460.0,0.00016712,2]
[367626640,1750881044560,-460.0,0.00016712,2]
[367626642,1750881044570,-460.0,0.00016712,2]
[367626644,1750881044579,-503.77,0.00016712,2]
[367626646,1750881044589,-460.0,0.00016712,2]
[367626648,1750881044599,-460.0,0.00016712,2]
[367626650,1750881044608,-151.0,0.00016739,2]
[367626652,1750881044617,-151.0,0.00016739,2]
[367626654,1750881044626,-500.0,0.00016739,2]
[367626656,1750881044636,-500.0,0.00016739,2]
[367626658,1750881044645,-500.0,0.00016739,2]
[367626660,1750881044654,-500.0,0.00016739,2]
[367626662,1750881044663,-302.0,0.00016739,2]
[367626664,1750881044672,-500.0,0.00016767,2]
[367626666,1750881044681,-154.09503508,0.00016767,2]
[367626668,1750881044691,-500.0,0.00016794,2]
[367626670,1750881044700,-500.0,0.00016821,2]
[367626672,1750881044709,-500.0,0.00016849,2]
[367626674,1750881044718,-440.55345157,0.00016865,2]
[367626676,1750881044727,-500.0,0.00016876,2]
[367626678,1750881044737,-500.0,0.00016904,2]
[367626680,1750881044746,-500.0,0.00016931,2]
[367626682,1750881044756,-500.0,0.00016958,2]
[367626684,1750881044765,-500.0,0.00016985,2]
[367626686,1750881044775,-203.45530176,0.00016985,2]
[367626688,1750881044784,-500.0,0.00016985,2]
[367626690,1750881044793,-500.0,0.00016985,2]
[367626692,1750881044802,-209.70405313,0.00016985,2]
[367626694,1750881044811,-500.0,0.00016985,2]
[367626696,1750881044821,-500.0,0.00016985,2]
[367626698,1750881044830,-500.0,0.00016985,2]
[367626700,1750881044839,-500.0,0.00016985,2]
[367626702,1750881044848,-500.0,0.00016985,2]
[367626704,1750881044857,-406.10540848,0.00016985,2]
[367626707,1750881044877,-63.59021675,0.00016985,2]
[367626709,1750881044887,-209.28799607,0.00016985,2]
[367626711,1750881044899,-290.71200393,0.00016985,2]
[367626713,1750881044908,-500.0,0.00016985,2]
[367626715,1750881044918,-500.0,0.00016985,2]
[367626717,1750881044928,-198.3084852,0.00016986,2]
[367626719,1750881044939,-301.6915148,0.00016986,2]
[367626721,1750881044948,-308.71247856,0.00016986,2]
[367626727,1750881044997,-171.771978,0.00016258,2]
[367626729,1750881045007,-151.28752144,0.00016986,2]
[367626731,1750881045016,-199.06957527,0.00016986,2]
[367626734,1750881045028,-260.93042473,0.00016986,2]
[367626736,1750881045037,-460.0,0.00016986,2]
[367626738,1750881045046,-342.76,0.00016986,2]
[367626740,1750881045056,-263.87,0.00016986,2]
[367626742,1750881045065,-460.0,0.00016986,2]
[367626744,1750881045076,-460.0,0.00016986,2]
[367626746,1750881045086,-314.5314504,0.00016986,2]
[367626748,1750881045095,-460.0,0.00016986,2]
[367626750,1750881045105,-460.0,0.00016986,2]
[367626752,1750881045114,-502.46,0.00016986,2]
[367626754,1750881045123,-460.0,0.00016986,2]
[367626756,1750881045132,-460.0,0.00016986,2]
[367626758,1750881045142,-279.2,0.00016986,2]
[367626760,1750881045151,-460.0,0.00016986,2]
[367626762,1750881045159,-218.69,0.00016986,2]
[367626764,1750881045168,-567.12,0.00016986,2]
[367626766,1750881045178,-460.0,0.00016986,2]
[367626768,1750881045187,-460.0,0.00016986,2]
[367626770,1750881045196,-460.0,0.00016986,2]
[367626772,1750881045205,-460.0,0.00016986,2]
[367626774,1750881045214,-460.0,0.00016986,2]
[367626776,1750881045224,-460.0,0.00016986,2]
[367626777,1750881045235,-460.0,0.00016986,2]
[367626779,1750881045245,-460.0,0.00016986,2]
[367626781,1750881045255,-460.0,0.00016986,2]
[367626783,1750881045264,-460.0,0.00016986,2]
[367626786,1750881045275,-460.0,0.00016986,2]
[367626788,1750881045284,-460.0,0.00016986,2]
[367626790,1750881045294,-499.65957347,0.00016986,2]
[367626791,1750881045303,-532.28,0.00016986,2]
[367626793,1750881045313,-1048.64,0.00016986,2]
[367626796,1750881045324,-460.0,0.00016986,2]
[367626798,1750881045333,-460.0,0.00016986,2]
[367626800,1750881045343,-460.0,0.00016986,2]
[367626802,1750881045351,-526.26,0.00016986,2]
[367626803,1750881045361,-460.0,0.00016986,2]
[367626806,1750881045370,-483.08,0.00016986,2]
[367626807,1750881045379,-399.54,0.00016986,2]
[367626810,1750881045390,-460.0,0.00016986,2]
[367626812,1750881045400,-460.0,0.00016986,2]
[367626814,1750881045409,-460.0,0.00016986,2]
[367626816,1750881045419,-1371.04,0.00016986,2]
[367626817,1750881045428,-460.0,0.00016986,2]
[367626820,1750881045437,-460.0,0.00016986,2]
[367626821,1750881045446,-1403.03,0.00016986,2]
[367626823,1750881045455,-1137.36,0.00016986,2]
[367626825,1750881045465,-460.0,0.00016986,2]
[367626827,1750881045473,-460.0,0.00016986,2]
[367626829,1750881045482,-460.0,0.00016986,2]
[367626831,1750881045491,-501.85,0.00016986,2]
[367626833,1750881045501,-460.0,0.00016986,2]
[367626835,1750881045511,-460.0,0.00016986,2]
[367626837,1750881045520,-690.47,0.00016986,2]
[367626839,1750881045528,-460.0,0.00016986,2]
[367626841,1750881045537,-712.72,0.00016986,2]
[367626843,1750881045547,-1179.7,0.00016986,2]
[367626845,1750881045556,-460.0,0.00016986,2]
[367626847,1750881045565,-460.0,0.00016986,2]
[367626849,1750881045574,-1199.51,0.00016986,2]
[367626851,1750881045583,-460.0,0.00016986,2]
[367626853,1750881045593,-2780.32,0.00016986,2]
[367626855,1750881045603,-2329.28,0.00016986,2]
[367626858,1750881045613,-1923.99,0.00016986,2]
[367626859,1750881045623,-460.0,0.00016986,2]
[367626860,1750881045633,-460.0,0.00016986,2]
[367626862,1750881045643,-460.0,0.00016986,2]
[367626864,1750881045652,-460.0,0.00016986,2]
[367626866,1750881045661,-460.0,0.00016986,2]
[367626868,1750881045670,-460.0,0.00016986,2]
[367626869,1750881045679,-670.7,0.00016986,2]
[367626870,1750881045689,-548.48,0.00016986,2]
[367626871,1750881045698,-460.0,0.00016986,2]
[367626872,1750881045708,-460.0,0.00016986,2]
[367626873,1750881045718,-882.97,0.00016986,2]
[367626874,1750881045727,-460.0,0.00016986,2]
[367626875,1750881045736,-460.0,0.00016986,2]
[367626876,1750881045745,-625.31,0.00016986,2]
[367626877,1750881045755,-460.0,0.00016986,2]
[367626878,1750881045765,-1145.64,0.00016986,2]
[367626879,1750881045776,-460.0,0.00016986,2]
[367626880,1750881045786,-406.91380244,0.00016986,2]
[367626881,1750881045795,-523.07,0.00016986,2]
[367626882,1750881045805,-460.0,0.00016986,2]
[367626883,1750881045814,-1537.77,0.00016986,2]
[367626884,1750881045823,-512.54,0.00016986,2]
[367626885,1750881045833,-686.58,0.00016986,2]
[367626886,1750881045842,-460.0,0.00016986,2]
[367626887,1750881045852,-1094.49,0.00016986,2]
[367626888,1750881045861,-460.0,0.00016986,2]
[367626889,1750881045871,-477.41,0.00016986,2]
[367626890,1750881045880,-597.38,0.00016986,2]
[367626892,1750881045892,-314.14561234,0.00016986,2]
[367626893,1750881045901,-460.0,0.00016986,2]
[367626894,1750881045910,-460.0,0.00016986,2]
[367626895,1750881045919,-567.35670558,0.00016986,2]
[367626897,1750881045928,-460.0,0.00016986,2]
[367626898,1750881045937,-460.0,0.00016986,2]
[367626899,1750881045947,-460.0,0.00016986,2]
[367626900,1750881045956,-460.0,0.00016986,2]
[367626901,1750881045965,-460.0,0.00016986,2]
[367626902,1750881045975,-503.77,0.00016986,2]
[367626903,1750881045984,-460.0,0.00016986,2]
[367626904,1750881045994,-500.0,0.0001699,2]
[367626905,1750881046003,-440.55345157,0.0001701,2]
[367626906,1750881046013,-397.0,0.00017013,2]
[367626907,1750881046022,-328.82839782,0.00017025,2]
[367626908,1750881046032,-151.0,0.00017052,2]
[367626909,1750881046042,-500.0,0.00017053,2]
[367626910,1750881046052,-274.17274144,0.00017053,2]
[367626911,1750881046061,-500.0,0.00017058,2]
[367626912,1750881046071,-500.0,0.00017058,2]
[367626913,1750881046081,-500.0,0.00017058,2]
[367626914,1750881046090,-500.0,0.00017073,2]
[367626915,1750881046100,-500.40666891,0.00017073,2]
[367626916,1750881046109,-500.0,0.00017073,2]
[367626917,1750881046118,-500.0,0.00017073,2]
[367626918,1750881046127,-500.0,0.00017073,2]
[367626919,1750881046138,-500.0,0.00017073,2]
[367626920,1750881046148,-430.12210363,0.00017073,2]
[367626921,1750881046158,-500.0,0.00017073,2]
[367626922,1750881046167,-500.0,0.00017073,2]
[367626923,1750881046176,-500.0,0.00017074,2]
[367626924,1750881046186,-500.0,0.00017074,2]
[367626925,1750881046195,-500.0,0.00017074,2]
[367626926,1750881046205,-500.0,0.00017074,2]
[367626927,1750881046215,-500.0,0.00017107,2]
[367626928,1750881046224,-500.0,0.00017107,2]
[367626929,1750881046235,-151.0,0.00017107,2]
[367626930,1750881046245,-500.0,0.00017117,2]
[367626931,1750881046256,-480.65187058,0.00017117,2]
[367626932,1750881046266,-500.0,0.00017131,2]
[367626933,1750881046275,-500.0,0.0001715,2]
[367626934,1750881046285,-500.0,0.0001715,2]
[367626935,1750881046294,-509.36934674,0.00017174,2]
[367626936,1750881046304,-425.18553072,0.00017187,2]
[367626937,1750881046313,-846.80634355,0.00017187,2]
[367626938,1750881046322,-160.0,0.00017187,2]
[367626939,1750881046331,-160.0,0.00017187,2]
[367626940,1750881046340,-230.22714675,0.00017187,2]
[367626941,1750881046349,-836.86812089,0.00017187,2]
[367626942,1750881046359,-160.0,0.00017187,2]
[367626943,1750881046369,-12558.06783089,0.00017187,2]
[367626945,1750881046379,-160.0,0.00017187,2]
[367626947,1750881046388,-160.0,0.00017187,2]
[367626949,1750881046398,-213.69531788,0.00017187,2]
[367626951,1750881046406,-160.0,0.00017187,2]
[367626953,1750881046416,-160.0,0.00017187,2]
[367626955,1750881046425,-460.0,0.0001726,2]
[367626957,1750881046434,-460.0,0.0001726,2]
[367626959,1750881046443,-172.68913135,0.0001726,2]
[367626961,1750881046453,-460.0,0.0001726,2]
[367626963,1750881046463,-460.0,0.0001726,2]
[367626965,1750881046472,-460.0,0.0001726,2]
[367626967,1750881046481,-460.0,0.0001726,2]
[367626969,1750881046490,-460.0,0.0001726,2]
[367626971,1750881046500,-516.12,0.0001726,2]
[367626973,1750881046509,-460.0,0.0001726,2]
[367626975,1750881046518,-460.0,0.0001726,2]
[367626977,1750881046527,-460.0,0.0001726,2]
[367626979,1750881046536,-417.03,0.0001726,2]
[367626981,1750881046545,-460.0,0.0001726,2]
[367626983,1750881046555,-460.0,0.0001726,2]
[367626985,1750881046565,-1048.64,0.0001726,2]
[367626987,1750881046574,-460.0,0.0001726,2]
[367626989,1750881046583,-460.0,0.0001726,2]
[367627005,1750881046723,-254.86,0.0001726,2]
[367627007,1750881046734,-460.0,0.0001726,2]
[367627009,1750881046743,-460.0,0.0001726,2]
[367627011,1750881046752,-1371.04,0.0001726,2]
[367627013,1750881046761,-460.0,0.0001726,2]
[367627015,1750881046770,-460.0,0.0001726,2]
[367627017,1750881046779,-1137.36,0.0001726,2]
[367627019,1750881046788,-1403.03,0.0001726,2]
[367627021,1750881046797,-460.0,0.0001726,2]
[367627023,1750881046807,-460.0,0.0001726,2]
[367627025,1750881046816,-460.0,0.0001726,2]
[367627026,1750881046825,-460.0,0.0001726,2]
[367627028,1750881046834,-460.0,0.0001726,2]
[367627030,1750881046843,-690.47,0.0001726,2]
[367627032,1750881046853,-460.0,0.0001726,2]
[367627034,1750881046862,-712.72,0.0001726,2]
[367627036,1750881046871,-460.0,0.0001726,2]
[367627038,1750881046880,-1179.7,0.0001726,2]
[367627040,1750881046891,-460.0,0.0001726,2]
[367627042,1750881046900,-1199.51,0.0001726,2]
[367627044,1750881046909,-2780.32,0.0001726,2]
[367627046,1750881046918,-2329.28,0.0001726,2]
[367627048,1750881046928,-1923.99,0.0001726,2]
[367627050,1750881046937,-460.0,0.0001726,2]
[367627052,1750881046946,-460.0,0.0001726,2]
[367627054,1750881046956,-460.0,0.0001726,2]
[367627056,1750881046965,-460.0,0.0001726,2]
[367627058,1750881046974,-460.0,0.0001726,2]
[367627060,1750881046983,-548.48,0.0001726,2]
[367627062,1750881046993,-670.7,0.0001726,2]
[367627064,1750881047002,-460.0,0.0001726,2]
[367627066,1750881047011,-460.0,0.0001726,2]
[367627068,1750881047021,-882.97,0.0001726,2]
[367627070,1750881047030,-460.0,0.0001726,2]
[367627072,1750881047039,-460.0,0.0001726,2]
[367627074,1750881047049,-625.31,0.0001726,2]
[367627076,1750881047058,-460.0,0.0001726,2]
[367627078,1750881047067,-1145.64,0.0001726,2]
[367627080,1750881047076,-551.82622355,0.0001726,2]
[367627081,1750881047085,-523.07,0.0001726,2]
[367627083,1750881047094,-460.0,0.0001726,2]
[367627085,1750881047104,-1537.77,0.0001726,2]
[367627087,1750881047113,-686.58,0.0001726,2]
[367627089,1750881047122,-460.0,0.0001726,2]
[367627091,1750881047131,-1094.49,0.0001726,2]
[367627093,1750881047141,-460.0,0.0001726,2]
[367627095,1750881047150,-597.38,0.0001726,2]
[367627097,1750881047159,-460.0,0.0001726,2]
[367627099,1750881047168,-460.0,0.0001726,2]
[367627100,1750881047178,-460.0,0.0001726,2]
[367627101,1750881047187,-460.0,0.0001726,2]
[367627102,1750881047196,-310.22,0.0001726,2]
[367627103,1750881047206,-503.77,0.0001726,2]
[367627104,1750881047216,-460.0,0.0001726,2]
[367627105,1750881047225,-225.48016869,0.00017267,2]
[367627106,1750881047237,-440.55345157,0.00017335,2]
[367627107,1750881047248,-151.0,0.00017534,2]
[367627108,1750881047257,-151.0,0.00017534,2]
[367627109,1750881047266,-151.0,0.00017534,2]
[367627110,1750881047276,-151.0,0.00017534,2]
[367627111,1750881047286,-460.0,0.00017534,2]
[367627112,1750881047295,-460.0,0.00017534,2]
[367627113,1750881047304,-460.0,0.00017534,2]
[367627114,1750881047314,-460.0,0.00017534,2]
[367627115,1750881047324,-460.0,0.00017534,2]
[367627116,1750881047333,-460.0,0.00017534,2]
[367627117,1750881047342,-460.0,0.00017534,2]
[367627118,1750881047351,-460.0,0.00017534,2]
[367627120,1750881047360,-460.0,0.00017534,2]
[367627121,1750881047369,-1048.64,0.00017534,2]
[367627123,1750881047379,-460.0,0.00017534,2]
[367627125,1750881047390,-460.0,0.00017534,2]
[367627127,1750881047399,-460.0,0.00017534,2]
[367627129,1750881047408,-1371.04,0.00017534,2]
[367627131,1750881047418,-460.0,0.00017534,2]
[367627133,1750881047427,-1137.36,0.00017534,2]
[367627135,1750881047437,-1403.03,0.00017534,2]
[367627137,1750881047447,-460.0,0.00017534,2]
[367627139,1750881047456,-460.0,0.00017534,2]
[367627141,1750881047465,-460.0,0.00017534,2]
[367627143,1750881047476,-460.0,0.00017534,2]